[Event "3rd Sharjah Challengers 2023"]
[Site "Sharjah"]
[Date "2023.05.24"]
[Round "8.2"]
[White "Sibashvili, Giorgi"]
[Black "Ohanyan, Emin"]
[Result "0-1"]
[ECO "A01"]
[WhiteElo "2408"]
[BlackElo "2444"]
[Annotator "TA"]
[PlyCount "80"]
[EventDate "2023.05.16"]
[EventType "swiss"]
[EventCountry "UAE"]
[SourceTitle "playchess.com"]
[Source "ChessBase"]
[SourceQuality "1"]
[TimeControl "5400+30"]

{[%evp 11,80,-4,0,0,0,0,2,-16,16,23,25,-10,-10,-29,0,23,0,14,34,-146,-161,-459,-311,-299,-346,-327,-326,-351,-403,-386,-316,-392,-393,-383,-398,-410,-410,-385,-414,-413,-29,-413,-412,-460,-451,-404,-360,-389,-389,-370,-369,-367,-356,-470,-461,-653,-628,-618,-605,-901,-863,-2057,-1958,-1758,-1381,-5704,-5616,-29971,-29972,-6516,-6287]} 1. b3 {[%emt 0:00:04]} e5 {[%emt 0:00:11]} 2. Bb2 {[%emt 0:00:09]} Nc6 {[%emt 0:00:04]} 3. c4 {[%emt 0:00:47]} Nge7 {[%emt 0:01:02]} 4. e3 {[%emt 0:00:32]} d5 {[%emt 0:07:50]} 5. cxd5 {[%emt 0:00:08]} Nxd5 {[%emt 0:00:03]} 6. a3 {[%emt 0:00:26]} Bd6 {[%emt 0:03:54]} 7. d3 {[%emt 0:00:39] The modern move. A01: Nimzowitsch-Larsen Opening.} O-O {[%emt 0:01:49]} 8. Nf3 {[%emt 0:00:37] Inhibits Qg5.} f5 {[%emt 0:04:23][%cal Bf7f5,Bf5f4,Bf4e3][%mdl 32]} 9. Nbd2 {[%emt 0:01:01] [#] The position is equal.} b5 $146 {[%emt 0:20:24]} ({Predecessor:} 9... Qe7 10. b4 Bd7 11. Nc4 b5 12. Nxd6 cxd6 13. g3 a5 14. bxa5 Nxa5 15. Bg2 Nb6 {1-0 Adhiban,B (2660)-Navara,D (2697) MrDodgy Online Inv 2nd blitz 2021 (1.8)}) 10. b4 {[%emt 0:29:29]} Kh8 {[%emt 0:05:13]} 11. d4 {[%emt 0:04:54][%cal Rd4e5]} (11. Rc1 $5 {[%cal Rc1c6]} Bb7 12. Qb3 $11) 11... e4 {[%emt 0:12:39]} 12. Ne5 {[%emt 0:05:59]} Bxe5 {[%emt 0:08:12]} (12... f4 $142 13. exf4 (13. Nxc6 $2 fxe3 {[%mdl 64] Discovered Attack} 14. Nxe4 Qh4 $19) 13... Bxe5 14. fxe5 (14. dxe5 Nxf4 15. Nxe4 Qe7 $11) 14... e3) 13. dxe5 $11 {[%emt 0:00:24]} f4 $1 $36 {[%emt 0:02:25][%mdl 2048] Black has good play.} 14. Nxe4 {[%emt 0:07:47]} (14. Bxb5 $2 Nxe3 15. Qc1 (15. fxe3 $2 Qh4+ 16. Ke2 fxe3 $19) 15... Nxg2+ 16. Kf1 e3 $19) 14... Bf5 {[%emt 0:02:29]} 15. Qc2 {[%emt 0:14:58]} (15. Bxb5 Bxe4 16. Qg4 (16. Bxc6 $2 fxe3 17. fxe3 Bxg2 $19) 16... Nce7 $19) (15. Nf6 $1 $14 {stays ahead.} fxe3 16. Qxd5 (16. Nxd5 $2 exf2+ 17. Kxf2 Bg4+ 18. Kg1 Bxd1 $19) 16... exf2+ 17. Ke2 (17. Kxf2 gxf6 18. Rd1 fxe5 $11 {[%mdl 64] Remove Defender})) 15... fxe3 $17 {[%emt 0:02:57] Black is more active.} 16. f3 $2 {[%emt 0:03:38] [#]} (16. O-O-O exf2 17. h4) 16... Nf4 $1 {[%emt 0:09:52] A dynamic duo of knights.} 17. Rd1 {[%emt 0:06:03] [#]} Qh4+ {[%emt 0:03:17]} (17... Bxe4 18. Qxe4 Qh4+ 19. g3 $14) 18. g3 {[%emt 0:00:15]} Qh5 {[%emt 0:00:07]} 19. Be2 {[%emt 0:06:14]} (19. Qxc6 $2 Qxf3 20. Rd4 Ng2+ 21. Bxg2 Qxg2 $19) 19... Nxe2 {[%emt 0:08:32]} 20. Kxe2 {[%emt 0:00:10] [#]} Bg6 $1 {[%emt 0:02:10][%csl LRe5,LRf3]} 21. Rdf1 {[%emt 0:03:33]} (21. Qxc6 Qxf3+ 22. Kd3 e2+ 23. Kd4 Bxe4 24. Qe6 exd1=Q+ 25. Rxd1 Rfd8+) 21... Nxe5 {[%emt 0:00:57]} 22. g4 {[%emt 0:02:50]} Qh3 {[%emt 0:01:00][%cal Oa8d8] ( -> ...Rad8!)} (22... Bxe4 23. Qxe4 Qf7 24. Bxe5 $18 (24. Qxe5 Qc4+ 25. Ke1 Qf7 $16)) 23. Bxe5 {[%emt 0:00:57] [#] aiming for Rhg1.} Qg2+ {[%emt 0:01:28]} 24. Kd1 {[%emt 0:01:07]} (24. Kxe3 $2 {loses.} Qxc2 $19) 24... Rad8+ {[%emt 0:00:14]} 25. Kc1 {[%emt 0:00:11]} Qxc2+ {[%emt 0:00:37]} 26. Kxc2 {[%emt 0:00:02] [#] This costs White the game.} Rxf3 $3 {[%emt 0:00:14][%mdl 576] Remove Defender, Decoy} 27. Rxf3 {[%emt 0:02:49]} (27. Rd1 Bxe4+) 27... Bxe4+ {[%emt 0:00:03]} 28. Kb2 {[%emt 0:04:50][%cal Oh1d1] Black must now prevent Rd1!} Bxf3 $19 {[%emt 0:00:08][%mdl 4096] Endgame KRB-KRB} 29. Rc1 {[%emt 0:00:18]} e2 {[%emt 0:00:51] Strongly threatening ...Rd2+.} (29... Bxg4 $2 {perishes.} 30. Rxc7 e2 31. Bxg7+ Kg8 32. Bc3 $19) 30. Bg3 {[%emt 0:00:19]} Bxg4 {[%emt 0:01:47]} 31. Rxc7 {[%emt 0:00:23]} a6 {[%emt 0:00:27]} 32. Ra7 {[%emt 0:01:16]} h5 {[%emt 0:00:31] ...Rd2+ would be deadly.} ({Not} 32... Re8 $2 33. Rxa6 Kg8 34. a4 $19) 33. Kc3 {[%emt 0:02:27]} (33. Rxa6 $142 Rd1 34. a4) 33... Rd1 {[%emt 0:00:28]} 34. Re7 {[%emt 0:00:21]} g5 {[%emt 0:00:30]} 35. h3 {[%emt 0:00:49]} Bf3 {[%emt 0:00:34] Hoping for ...h4.} 36. Re3 {[%emt 0:00:54] [#]} Rg1 $1 {[%emt 0:00:33]} 37. Bf2 {[%emt 0:00:43]} Rf1 {[%emt 0:00:24]} 38. Bg3 {[%emt 0:00:35]} h4 {[%emt 0:00:16]} 39. Be5+ {[%emt 0:00:22]} Kh7 {[%emt 0:00:07]} 40. Kd2 {[%emt 0:00:16]} Rd1+ {[%emt 0:00:03] Beautiful play by Ohanyan!   Weighted Error Value: White=0.73/Black=0.10 (very precise)} 0-1

[Event "3rd Sharjah Challengers 2023"]
[Site "Sharjah"]
[Date "2023.05.24"]
[Round "8.3"]
[White "Hesham, Abdelrahman"]
[Black "Begmuratov, Khumoyun"]
[Result "1-0"]
[ECO "E20"]
[WhiteElo "2409"]
[BlackElo "2387"]
[Annotator "TA"]
[PlyCount "225"]
[EventDate "2023.05.16"]
[EventType "swiss"]
[EventCountry "UAE"]
[SourceTitle "playchess.com"]
[Source "ChessBase"]
[SourceQuality "1"]
[TimeControl "5400+30"]

{[%evp 9,224,0,22,18,26,28,35,28,39,38,18,25,27,26,42,39,42,53,91,76,143,129,160,164,215,195,205,202,199,195,182,199,254,271,266,265,271,222,229,192,196,201,206,182,183,183,183,183,191,191,279,279,274,274,274,264,279,279,279,279,279,279,279,279,279,279,279,279,279,279,279,279,279,279,279,279,279,279,440,440,440,440,436,430,437,437,440,429,415,375,353,349,957,940,953,930,903,903,894,896,903,962,1138,1138,1138,1132,1108,728,955,913,861,810,712,705,683,485,464,449,1347,6722,29961,29961,29936,29939,29974,29975,29975,29976,29976,29977,29977,29977,29975,29964,29952,29954,29956,29951,29959,29959,29953,29947,29948,29948,29948,29950,29959,29960,29960,29961,29961,29962,29961,29962,29962,29964,29963,29965,29966,29969,29968,29970,29970,29971,29971,29972,29971,29972,29973,29975,29973,29973,29973,29977,29976,29978,29978,29979,29979,29980,29980,29981,29980,29981,29982,4137,29983,29984,29984,29984,29983,29984,29987,29988,29988,29989,29989,29989,29990,29990,29991,29992,29994,29993,29993,29994,29994,29995,29995,29996,29996,29995,29997,29998,29998,29999,29999]} 1. d4 {[%emt 0:00:03]} Nf6 {[%emt 0:00:35]} 2. c4 {[%emt 0:00:07]} e6 {[%emt 0:00:09]} 3. Nc3 {[%emt 0:02:52]} Bb4 {[%emt 0:00:13]} 4. f3 {[%emt 0:00:22]} c5 {[%emt 0:06:59]} 5. d5 {[%emt 0:00:08]} b5 {[%emt 0:15:28]} 6. e4 {[%emt 0:00:17][%cal Be2e4,Be4e5,Be5f6][%mdl 32] E20: Nimzo-Indian: 4 g3 and 4 f3.} O-O {[%emt 0:06:53]} 7. e5 {[%emt 0:02:34]} ({Much weaker is} 7. cxb5 exd5 8. exd5 Re8+ 9. Nge2 a6 $11) 7... exd5 {[%emt 0:07:46] ...Re8 is the strong threat.} 8. exf6 {[%emt 0:06:04] White is slightly better.} d4 $1 {[%emt 0:03:06][%mdl 64] [#] Pin} 9. a3 $1 {[%emt 0:02:00]} Ba5 {[%emt 0:00:53][%mdl 64] Pin} 10. b4 $1 {[%emt 0:03:01] Black must now prevent Nd5.} dxc3 {[%emt 0:10:17]} 11. bxa5 {[%emt 0:05:07]} Re8+ {[%emt 0:19:23]} 12. Kf2 {[%emt 0:39:37]} Qxf6 {[%emt 0:10:56][%cal Oc3c2] ...c2! would be deadly.} 13. Ra2 {[%emt 0:02:01]} b4 {[%emt 0:01:50] Black is now going downhill.} 14. Re2 {[%emt 0:13:28] [#]} Rxe2+ $146 {[%emt 0:02:12]} ({Black should try} 14... Re6) ({Predecessor:} 14... Rf8 15. Nh3 Nc6 16. Nf4 Ba6 17. axb4 cxb4 18. Nd5 Qh4+ 19. g3 Qxc4 20. Rc2 Qc5+ {0-1 Mekhitarian,K (2568)-L'Ami,E (2631) Olympiad-41 Tromsoe 2014 (8.2)}) 15. Nxe2 {[%emt 0:00:06][%cal Bg1e2,Be2f4,Bf4d5][%mdl 32] aiming for Qd5.} Nc6 {[%emt 0:03:00]} 16. Nf4 {[%emt 0:04:02]} Bb7 {[%emt 0:05:05]} (16... Rb8 {was called for.}) 17. Nd5 $18 {[%emt 0:04:06]} Qh4+ {[%emt 0:02:49]} 18. g3 {[%emt 0:01:06]} Qd8 {[%emt 0:00:27]} 19. axb4 {[%emt 0:01:31]} cxb4 {[%emt 0:00:21]} 20. Qa4 {[%emt 0:00:25] Threatens to win with a6.} Qxa5 {[%emt 0:01:16]} (20... Rb8 {keeps fighting.} 21. Be3 (21. Nxb4 $2 {loses.} Nxb4 22. Be2 Bc6 $19) 21... Ba8) 21. Qxa5 {[%emt 0:00:30][%mdl 64] [#] Remove Defender} Nxa5 {[%emt 0:00:06]} 22. Nxb4 {[%emt 0:00:04]} Rc8 {[%emt 0:01:03]} 23. Be3 {[%emt 0:02:35]} Nxc4 {[%emt 0:00:25]} 24. Bxc4 {[%emt 0:00:12]} Rxc4 {[%emt 0:00:02]} 25. Nc2 {[%emt 0:00:17]} Bc6 {[%emt 0:01:14]} 26. Rb1 {[%emt 0:01:01][%cal Rb1b8]} f6 {[%emt 0:00:17]} 27. Rb4 {[%emt 0:00:28]} Rxb4 {[%emt 0:00:41]} 28. Nxb4 {[%emt 0:00:02]} Ba4 {[%emt 0:00:23]} 29. Bxa7 {[%emt 0:00:09]} c2 {[%emt 0:00:15]} (29... Bd1 $142 30. Ke3 Kf7) 30. Be3 {[%emt 0:00:13]} Kf7 {[%emt 0:00:24]} 31. Ke2 {[%emt 0:00:13]} Bb3 {[%emt 0:00:27]} 32. Kd2 {[%emt 0:00:08]} Be6 {[%emt 0:00:08]} 33. Nxc2 {[%emt 0:00:07]} Bd5 {[%emt 0:00:04]} 34. Nd4 {[%emt 0:00:29]} Bb7 {[%emt 0:00:12]} 35. Kc3 {[%emt 0:00:12]} Bd5 {[%emt 0:00:53]} 36. Kb4 {[%emt 0:00:08]} Ba2 {[%emt 0:00:30]} 37. Kc5 {[%emt 0:00:12]} Bb1 {[%emt 0:00:06]} 38. Kd6 {[%emt 0:00:06]} Ke8 {[%emt 0:00:06]} 39. Nb3 {[%emt 0:01:54]} Bc2 {[%emt 0:00:10]} 40. Nc5 {[%emt 0:00:02]} Bd1 {[%emt 0:00:01]} 41. f4 {[%emt 0:02:01]} Bg4 {[%emt 0:00:03]} 42. Bc1 {[%emt 0:00:56]} Bf5 {[%emt 0:00:04]} 43. Ba3 {[%emt 0:02:38]} h5 {[%emt 0:00:16]} (43... Bh3 {was necessary.} 44. Bb4 Bg4) 44. Kc7 {[%emt 0:00:18]} Bg4 {[%emt 0:02:36]} 45. Ne4 {[%emt 0:02:41]} Kf7 {[%emt 0:00:54]} 46. Kd6 {[%emt 0:00:48]} Bf5 {[%emt 0:00:35]} 47. Nc3 {[%emt 0:00:47]} Bh3 {[%emt 0:01:29]} 48. Nd5 {[%emt 0:00:35]} Be6 {[%emt 0:00:10]} 49. Ne3 {[%emt 0:00:05] Strongly threatening f5.} Ke8 {[%emt 0:00:08]} 50. Kc7 {[%emt 0:01:53]} Kf7 $2 {[%emt 0:01:27]} (50... Ba2 51. Kd6 Bb1) 51. f5 {[%emt 0:00:16]} Ba2 {[%emt 0:00:01]} 52. Kxd7 {[%emt 0:00:08]} Bb1 {[%emt 0:00:06]} 53. Kd6 {[%emt 0:00:55]} Be4 {[%emt 0:00:10]} 54. Kc5 {[%emt 0:01:21]} Bd3 {[%emt 0:00:07]} 55. Kd4 {[%emt 0:00:05]} Bb1 {[%emt 0:00:05]} 56. Bb4 {[%emt 0:01:38]} Kg8 {[%emt 0:00:06]} 57. Nd5 {[%emt 0:01:23]} Kf7 {[%emt 0:00:03]} 58. Ne7 {[%emt 0:00:16]} Bc2 {[%emt 0:00:14]} 59. Ke3 {[%emt 0:00:08]} Bb1 {[%emt 0:00:16]} 60. Kf4 {[%emt 0:02:58]} Bc2 {[%emt 0:00:07]} 61. Nc6 {[%emt 0:00:15]} Bb1 {[%emt 0:00:09]} 62. Nd4 {[%emt 0:00:09]} Bd3 {[%emt 0:00:07]} 63. Kf3 {[%emt 0:00:26]} Bb1 {[%emt 0:00:11]} (63... Bf1 $142 64. Kf2 Ba6) 64. Kg2 {[%emt 0:00:14] Kh3 would kill now.} Be4+ {[%emt 0:01:42]} 65. Kh3 {[%emt 0:00:08]} Bd3 {[%emt 0:00:54]} 66. Kh4 {[%emt 0:00:15]} Be4 {[%emt 0:00:08]} 67. Kxh5 {[%emt 0:00:14]} Bb1 {[%emt 0:00:09]} 68. Kg4 {[%emt 0:00:06]} Ba2 {[%emt 0:00:06]} 69. Kf4 {[%emt 0:00:21]} Bb1 {[%emt 0:00:04]} 70. g4 {[%emt 0:00:16]} Ba2 {[%emt 0:00:06]} 71. h4 {[%emt 0:00:04]} Bb1 {[%emt 0:00:05]} 72. g5 {[%emt 0:00:04]} g6 {[%emt 0:00:08]} 73. Ba5 {[%emt 0:01:03]} fxg5+ {[%emt 0:00:27]} 74. hxg5 {[%emt 0:02:06]} gxf5 {[%emt 0:00:02]} 75. Nxf5 {[%emt 0:00:36]} Kg6 {[%emt 0:00:17]} 76. Nh4+ {[%emt 0:00:31]} Kh5 {[%emt 0:00:26]} 77. Nf3 {[%emt 0:00:31]} Bc2 {[%emt 0:00:20]} 78. Ne5 {[%emt 0:00:28]} Bb1 {[%emt 0:00:08]} 79. Bd8 {[%emt 0:00:02]} Bc2 {[%emt 0:00:08]} 80. Ke3 {[%emt 0:00:07]} Bf5 {[%emt 0:00:10]} 81. Kd4 {[%emt 0:00:08]} Bb1 {[%emt 0:00:10]} 82. Kd5 {[%emt 0:00:05]} Ba2+ {[%emt 0:00:07]} 83. Kd6 {[%emt 0:00:03]} Bb1 {[%emt 0:00:10]} 84. Ke6 {[%emt 0:00:09]} Ba2+ {[%emt 0:00:11]} 85. Kf6 {[%emt 0:00:03]} Bb1 {[%emt 0:00:06]} 86. g6 {[%emt 0:00:35]} Bxg6 {[%emt 0:00:20]} 87. Nxg6 {[%emt 0:00:03]} Kg4 {[%emt 0:00:05]} 88. Ke5 {[%emt 0:00:25]} Kg3 {[%emt 0:00:09]} 89. Ke4 {[%emt 0:00:15]} Kg2 {[%emt 0:00:06]} 90. Bh4 {[%emt 0:00:44]} Kh1 {[%emt 0:00:06]} 91. Kf3 {[%emt 0:00:22]} Kg1 {[%emt 0:00:07]} 92. Bg3 {[%emt 0:00:37]} Kh1 {[%emt 0:00:10]} 93. Ne5 {[%emt 0:00:05]} Kg1 {[%emt 0:00:10]} 94. Ng4 {[%emt 0:00:18]} Kh1 {[%emt 0:00:12]} 95. Nf2+ {[%emt 0:00:07]} Kg1 {[%emt 0:00:08]} 96. Bf4 {[%emt 0:00:03]} Kf1 {[%emt 0:00:12]} 97. Bh2 {[%emt 0:00:02]} Ke1 {[%emt 0:00:09]} 98. Ne4 {[%emt 0:00:06] White mates.} Kd1 {[%emt 0:00:12]} 99. Ke3 {[%emt 0:00:05]} Kc2 {[%emt 0:00:08]} 100. Nd2 {[%emt 0:00:05]} Kc3 {[%emt 0:00:09]} 101. Bd6 {[%emt 0:00:04]} Kc2 {[%emt 0:00:10]} 102. Be5 {[%emt 0:00:05]} Kc1 {[%emt 0:00:09]} 103. Kd3 {[%emt 0:00:12]} Kd1 {[%emt 0:00:06]} 104. Bg3 {[%emt 0:00:05]} Kc1 {[%emt 0:00:08]} 105. Nc4 {[%emt 0:00:08]} Kb1 {[%emt 0:00:07]} 106. Kc3 {[%emt 0:00:05]} Kc1 {[%emt 0:00:15]} 107. Nb2 {[%emt 0:00:05]} Kb1 {[%emt 0:00:07]} 108. Kb3 {[%emt 0:00:02]} Ka1 {[%emt 0:00:09]} 109. Bf4 {[%emt 0:00:35]} Kb1 {[%emt 0:00:07]} 110. Bd2 {[%emt 0:00:12]} Ka1 {[%emt 0:00:06]} 111. Nc4 {[%emt 0:00:02]} Kb1 {[%emt 0:00:07]} 112. Na3+ {[%emt 0:00:04]} Ka1 {[%emt 0:00:06]} 113. Bc3# {[%emt 0:00:34] Weighted Error Value: White=0.03 (flawless) /Black=0.17 (very precise)} 1-0

[Event "3rd Sharjah Challengers 2023"]
[Site "Sharjah"]
[Date "2023.05.24"]
[Round "8.4"]
[White "Burmakin, Vladimir"]
[Black "Abdurakhmonov, Mukhammadali"]
[Result "1-0"]
[ECO "E91"]
[WhiteElo "2496"]
[BlackElo "2403"]
[Annotator "TA"]
[PlyCount "79"]
[EventDate "2023.05.16"]
[EventType "swiss"]
[EventCountry "UAE"]
[SourceTitle "playchess.com"]
[Source "ChessBase"]
[SourceQuality "1"]
[TimeControl "5400+30"]

{[%evp 16,79,88,76,97,90,85,91,89,90,87,93,118,121,108,111,151,128,130,131,169,127,248,182,179,177,198,122,116,29,18,20,54,61,73,64,568,537,579,550,1066,1048,1447,1327,1644,1612,29988,29989,29989,29989,29988,1232,1072,846,805,709,680,699,641,594,550,550,536,522,488,397]} 1. d4 {[%emt 1:31:00]} Nf6 {[%emt 1:31:00]} 2. Nf3 {[%emt 0:00:30]} c5 {[%emt 0:00:30]} 3. d5 {[%emt 0:00:30]} g6 {[%emt 0:00:30]} 4. c4 {[%emt 0:00:30]} Bg7 {[%emt 0:00:30]} 5. Nc3 {[%emt 0:00:30]} O-O {[%emt 0:00:30]} 6. e4 {[%emt 0:00:30]} d6 {[%emt 0:00:30]} 7. Be2 {[%emt 0:00:30]} Bg4 {[%emt 0:00:30]} 8. O-O {[%emt 0:00:30]} Na6 {[%emt 0:00:30] 8...e6 is the modern continuation.} 9. Bg5 {[%emt 0:00:30]} Bxf3 {[%emt 0:00:30] E91: King's Indian: Classical: 6 Be2, unusual replies including 6...c5 and 6...Bg4.} 10. Bxf3 {[%emt 0:00:30]} (10. gxf3 $6 Nh5 $11) 10... Nc7 {[%emt 0:00:30]} 11. Qd2 {[%emt 0:00:30] [#]} a6 $146 {[%emt 0:00:30] White is better.} ({Predecessor:} 11... e5 12. a3 a5 13. Bd1 Qe7 14. Ba4 Rfb8 15. Rae1 Qf8 16. f4 exf4 17. Qxf4 Nfe8 {½-½ Farago,I (2410)-Petenyi,T (2437) HUN-chT 1617 2016 (3.7)}) 12. a4 {[%emt 0:00:30]} Rb8 {[%emt 0:00:30]} 13. Be2 {[%emt 0:00:30] White is more active.} Re8 {[%emt 0:00:30]} 14. f4 {[%emt 0:00:30]} Nd7 {[%emt 0:00:30]} 15. Bh4 {[%emt 0:00:30] Black is weak on the light squares} Qc8 {[%emt 0:00:30]} 16. Kh1 {[%emt 0:00:30]} Kh8 {[%emt 0:00:30]} 17. Rad1 {[%emt 0:00:30]} Bd4 {[%emt 0:00:30]} 18. Rf3 {[%emt 0:00:30]} e6 {[%emt 0:00:30]} (18... f6 $16) 19. dxe6 {[%emt 0:00:30]} Nxe6 {[%emt 0:00:30]} 20. Nd5 {[%emt 0:00:30][%cal Bc3d5,Bd5e7,Be7d5][%mdl 32]} Bg7 {[%emt 0:00:30]} 21. f5 {[%emt 0:00:30]} (21. Rh3 $18) 21... Nd4 $16 {[%emt 0:00:30][%cal Oe8e4] [#]} 22. f6 {[%emt 0:00:30]} Bf8 $1 $11 {[%emt 0:00:30][%cal Oe8e4]} 23. Ne7 {[%emt 0:00:30]} Qc7 {[%emt 0:00:30]} 24. Rh3 {[%emt 0:00:30]} Ne5 {[%emt 0:00:30]} 25. Bg5 $36 {[%emt 0:00:30][%cal Od2f4][%mdl 2048] Black must now prevent Qf4! White has the initiative.} Ne6 {[%emt 0:00:30][%mdl 8192] Inhibits Qf4. A mistake that costs the game.} ({Black should try} 25... Rxe7 $14 26. fxe7 Bxe7) 26. Nd5 {[%emt 0:00:30]} (26. Qxd6 $2 {too greedy.} Qxd6 27. Rxd6 Nxg5 $19) 26... Qd8 {[%emt 0:00:30]} 27. Bh6 {[%emt 0:00:30] Strongly threatening Bxf8.} Nd7 {[%emt 0:00:30]} 28. Rf1 {[%emt 0:00:30]} g5 {[%emt 0:00:30]} 29. Bxg5 {[%emt 0:00:30]} Nxg5 {[%emt 0:00:30]} 30. Qxg5 {[%emt 0:00:30][%cal Oh3h7] Threatening mate with Rxh7+!} Ne5 {[%emt 0:00:30]} 31. Bg4 {[%emt 0:00:30]} Ng6 {[%emt 0:00:30]} 32. Bf5 {[%emt 0:00:30]} Re5 {[%emt 0:00:30]} 33. Qh5 {[%emt 0:00:30]} (33. Rff3 $142 Kg8 34. Rxh7 Qa5 35. Nc3 Qxc3 36. bxc3 Rxf5 37. exf5 {[%mdl 64] Pin} Re8 38. Qxg6+ {[%mdl 64] Promotion} (38. fxg6 $2 {leads to mate.} Re1+) 38... fxg6 39. f7+ (39. Rxb7 $2 {gets mated.} Re1+) 39... Kxh7 40. fxe8=Q gxf5 41. Rg3 Kh8 42. Qxf8+ Kh7 43. Qg7#) 33... h6 $18 {[%emt 0:00:30] White is clearly winning.} 34. Qg5 {[%emt 0:00:30] Intending Rxh6+ and mate.} Kg8 {[%emt 0:00:30]} 35. Qg4 {[%emt 0:00:30]} Rxd5 {[%emt 0:00:30]} 36. exd5 {[%emt 0:00:30]} Qxf6 {[%emt 0:00:30]} 37. Bd3 {[%emt 0:00:30]} Qg5 {[%emt 0:00:30]} 38. Qxg5 {[%emt 0:00:30]} hxg5 {[%emt 0:00:30]} 39. Bxg6 {[%emt 0:00:30]} fxg6 {[%emt 0:00:30]} 40. Re3 {[%emt 0:00:30] Weighted Error Value: White=0.17 (very precise) /Black=0.61} 1-0

[Event "3rd Sharjah Challengers 2023"]
[Site "Sharjah"]
[Date "2023.05.24"]
[Round "8.5"]
[White "Sivuk, Vitaly"]
[Black "Zaibi, Amir"]
[Result "1-0"]
[ECO "D38"]
[WhiteElo "2489"]
[BlackElo "2393"]
[Annotator "TA"]
[PlyCount "83"]
[EventDate "2023.05.16"]
[EventType "swiss"]
[EventCountry "UAE"]
[SourceTitle "playchess.com"]
[Source "ChessBase"]
[SourceQuality "1"]
[TimeControl "5400+30"]

{[%evp 12,83,26,23,28,37,72,77,59,18,20,0,0,0,0,0,27,24,96,73,68,54,47,43,50,14,28,19,18,10,18,10,60,16,20,31,91,85,108,116,95,95,104,96,103,97,113,107,131,126,127,104,118,104,102,106,112,121,460,472,411,433,927,925,871,833,793,761,1762,1762,1695,1426,1221,962]} 1. Nf3 {[%emt 0:00:07]} d5 {[%emt 0:00:57]} 2. d4 {[%emt 0:00:12]} Nf6 {[%emt 0:01:39]} 3. c4 {[%emt 0:00:08]} e6 {[%emt 0:00:06]} 4. Nc3 {[%emt 0:00:13]} Bb4 {[%emt 0:00:38]} 5. Bg5 {[%emt 0:01:48]} h6 {[%emt 0:00:57]} 6. Bxf6 {[%emt 0:00:10]} Qxf6 {[%emt 0:00:05]} 7. e3 {[%emt 0:00:09]} Nd7 {[%emt 0:03:20] D38: Queen's Gambit Declined: Ragozin Defence (4 Nf3 Bb4).} 8. Qb3 {[%emt 0:07:28][%csl LRb4,LRd5]} c5 {[%emt 0:06:08]} 9. cxd5 {[%emt 0:02:03]} exd5 {[%emt 0:00:12] White is better.} 10. Bb5 {[%emt 0:06:00]} O-O {[%emt 0:02:17]} 11. O-O {[%emt 0:02:02]} Bxc3 {[%emt 0:02:31]} 12. Qxc3 {[%emt 0:00:09]} c4 $1 {[%emt 0:03:04]} 13. b3 {[%emt 0:02:47] [#]} Nb6 $146 {[%emt 0:05:32]} (13... a6 $5 {[%cal Ra6b5]} 14. Bxd7 Bxd7 $11) ({Predecessor:} 13... Nc5 14. bxc4 Ne4 15. Qc1 Nd6 16. Ne5 a6 17. Bd7 Nxc4 18. Nxc4 dxc4 19. Ba4 b5 {0-1 Kuznetsov,M (1947)-Palachev,P (2372) Chigorin Memorial 25th 2017 (1)}) 14. bxc4 {[%emt 0:00:30]} Bg4 {[%emt 0:04:40]} (14... a6 $11 15. c5 axb5 16. cxb6 Qxb6) 15. Ne5 $16 {[%emt 0:08:35]} Be2 {[%emt 0:00:06]} 16. Rfb1 {[%emt 0:06:17] [#] c5 is the strong threat.} (16. Rfc1 $5) 16... Bxc4 {[%emt 0:08:56]} 17. a4 {[%emt 0:19:12]} Rfc8 {[%emt 0:02:22] ...Bxb5 would be deadly.} 18. Qe1 {[%emt 0:11:47]} Rc7 $1 {[%emt 0:12:44]} 19. a5 {[%emt 0:07:09]} Nc8 {[%emt 0:00:57]} 20. Nd7 {[%emt 0:00:49]} Qe7 {[%emt 0:01:59] Hoping for ...Bxb5.} 21. Bxc4 {[%emt 0:05:29]} Rxc4 {[%emt 0:12:00]} (21... dxc4 $11 22. Nc5 Nd6) 22. Ne5 {[%emt 0:00:39][%cal Bd7e5,Be5d3,Bd3f4][%mdl 32]} (22. Nc5 $5 {[%cal Rb1b7]}) 22... Rc7 {[%emt 0:01:00]} 23. Nd3 {[%emt 0:02:56]} Qe8 {[%emt 0:04:09] Wards off Rb5} ({Black should try} 23... Nd6 $14) 24. Qb4 $36 {[%emt 0:01:02][%mdl 2048] Keeping Black busy.} b6 {[%emt 0:04:06]} 25. Qb5 {[%emt 0:02:57]} Qd8 {[%emt 0:03:01]} 26. Nf4 {[%emt 0:04:39]} Rd7 {[%emt 0:01:40]} 27. g3 {[%emt 0:03:53]} Rb8 {[%emt 0:00:24]} 28. h4 {[%emt 0:00:46]} Rbb7 {[%emt 0:00:18]} 29. Rc1 {[%emt 0:00:30][%cal Bb1c1,Bc1c5,Bc5c6,Bc6g6][%mdl 32]} bxa5 {[%emt 0:01:11]} 30. Qxa5 {[%emt 0:00:10]} Nb6 {[%emt 0:00:54]} 31. Rc5 {[%emt 0:00:54]} Rbc7 {[%emt 0:08:33]} 32. Qb5 {[%emt 0:01:37]} g6 {[%emt 0:02:10]} 33. Rac1 {[%emt 0:00:36] White is much more active.} Rb7 {[%emt 0:00:57]} 34. Rc6 {[%emt 0:00:29]} Kg7 $2 {[%emt 0:00:12][%mdl 8192] [#] This costs Black the game.} (34... Nc4 $2 35. Qc5 Rbc7 36. Rxc7 Rxc7 37. Qxd5 $18) (34... Rbc7 $16 {is tougher.} 35. R6c5 Rb7) 35. Rxg6+ $3 $18 {[%emt 0:00:26][%mdl 576] Deflection} Kh7 {[%emt 0:00:46]} 36. Rgc6 {[%emt 0:00:21]} Qf8 {[%emt 0:03:15]} (36... Nc4 $142 37. Qa4 Rd6 38. Nxd5 {[%mdl 64] Remove Defender} Rxd5 39. Qxc4 Qd7) 37. Qd3+ {[%emt 0:00:21]} f5 {[%emt 0:00:14]} 38. Ng6 {[%emt 0:00:23]} Qf7 {[%emt 0:02:28]} 39. Ne5 {[%emt 0:00:09][%csl LRd7,LRf7] Black is weak on the dark squares} Qh5 {[%emt 0:00:02]} 40. Nxd7 {[%emt 0:00:28]} Rxd7 {[%emt 0:00:04]} 41. Rf6 {[%emt 0:00:14]} Rf7 {[%emt 0:01:03]} 42. Rcc6 {[%emt 0:00:11] Weighted Error Value: White=0.08 (flawless) /Black=0.31} 1-0